fUST/lending_fUST_20251010
["ID","MTS","AMOUNT","RATE_DAILY","PERIOD"]
[390503126,1760066277674,-642.26,0.00016438,2]
[390503127,1760066277697,-500.0,0.00016438,2]
[390503128,1760066277720,-1820.2,0.00016438,2]
[390503129,1760066277742,-500.0,0.00016438,2]
[390503130,1760066277765,-500.0,0.00016438,2]
[390503131,1760066277790,-500.0,0.00016438,2]
[390503132,1760066277815,-500.0,0.00016438,2]
[390503133,1760066277839,-2020.3,0.00016438,2]
[390503134,1760066277863,-500.0,0.00016438,2]
[390503135,1760066277886,-939.69,0.00016438,2]
[390503136,1760066277906,-501.27475594,0.00016438,2]
[390503137,1760066277927,-500.0,0.00016438,2]
[390503138,1760066277949,-500.0,0.00016438,2]
[390503139,1760066277970,-500.0,0.00016438,2]
[390503140,1760066277990,-500.0,0.00016438,2]
[390503141,1760066278011,-500.0,0.00016438,2]
[390503142,1760066278032,-500.0,0.00016438,2]
[390503143,1760066278054,-500.0,0.00016438,2]
[390503144,1760066278075,-854.26,0.00016438,2]
[390503145,1760066278096,-500.0,0.00016438,2]
[390503146,1760066278117,-500.0,0.00016438,2]
[390503147,1760066278138,-500.0,0.00016438,2]
[390503148,1760066278159,-500.0,0.00016438,2]
[390503149,1760066278180,-501.56022835,0.00016438,2]
[390503150,1760066278201,-500.0,0.00016438,2]
[390503151,1760066278222,-500.0,0.00016438,2]
[390503152,1760066278243,-500.0,0.00016438,2]
[390503153,1760066278265,-993.99,0.00016438,2]
[390503154,1760066278285,-500.0,0.00016438,2]
[390503155,1760066278306,-500.0,0.00016438,2]
[390503156,1760066278327,-500.0,0.00016438,2]
[390503157,1760066278348,-1183.84,0.00016438,2]
[390503158,1760066278370,-1425.59,0.00016438,2]
[390503159,1760066278391,-500.0,0.00016438,2]
[390503160,1760066278411,-500.0,0.00016438,2]
[390503161,1760066278432,-500.0,0.00016438,2]
[390503162,1760066278453,-500.0,0.00016438,2]
[390503163,1760066278475,-1072.09,0.00016438,2]
[390503164,1760066278496,-500.0,0.00016438,2]
[390503165,1760066278523,-500.0,0.00016438,2]
[390503166,1760066278546,-500.0,0.00016438,2]
[390503167,1760066278567,-878.67,0.00016438,2]
[390503168,1760066278591,-503.95354061,0.00016438,2]
[390503169,1760066278613,-500.0,0.00016438,2]
[390503170,1760066278636,-2717.49,0.00016438,2]
[390503171,1760066278659,-5649.65,0.00016438,2]
[390503172,1760066278680,-500.0,0.00016438,2]
[390503173,1760066278701,-7058.77,0.00016438,2]
[390503174,1760066278722,-500.0,0.00016438,2]
[390503175,1760066278743,-500.0,0.00016438,2]
[390503176,1760066278764,-500.0,0.00016438,2]
[390503177,1760066278785,-500.0,0.00016438,2]
[390503178,1760066278808,-500.0,0.00016438,2]
[390503179,1760066278831,-500.0,0.00016438,2]
[390503180,1760066278852,-502.97102629,0.00016438,2]
[390503181,1760066278873,-500.0,0.00016438,2]
[390503182,1760066278897,-56.11819766,0.00016438,2]
[390503202,1760066618557,418.308636,0.00018975,20]
[390503203,1760066631446,216.341457,0.00018975,20]
[390503234,1760066743862,434.836171,0.00015425,2]
[390503279,1760066868342,1400.67,0.00024,30]
[390503284,1760066890777,1000.0,0.00024,30]
[390503286,1760066899574,1000.0,0.00024,30]
[390503288,1760066908269,1000.0,0.00024,60]
[390503291,1760066919253,1000.0,0.00024,60]
[390503293,1760066920976,1000.0,0.00024,60]
[390503294,1760066922886,1000.0,0.00024,60]
[390503295,1760066923706,1000.0,0.00024,60]
[390503296,1760066924566,1000.0,0.00024,60]
[390503297,1760066936400,1000.0,0.00024,30]
[390503298,1760066937815,1000.0,0.00024,30]
[390503302,1760066971019,2777.21457,0.00028767,120]
[390503379,1760067032972,-300.0,0.00015576,2]
[390503381,1760067032981,-100.0,0.00015577,2]
[390503383,1760067032992,-293.65474654,0.00015577,2]
[390503385,1760067033001,-1574.61898614,0.00015577,2]
[390503387,1760067033010,-3539.3498261,0.00015577,2]
[390503389,1760067033019,-17899.38522659,0.00016237,2]
[390503391,1760067033028,-153.30683551,0.00016238,2]
[390503393,1760067033037,-458.58545947,0.00016335,2]
[390503395,1760067033049,-3285.28889428,0.00016338,2]
[390503397,1760067033059,-5396.21789675,0.00016338,2]
[390503399,1760067033069,-4792.46188079,0.00016338,2]
[390503401,1760067033078,-10650.0,0.000164,2]
[390503404,1760067033087,-500.0,0.00016426,2]
[390503406,1760067033095,-152.77934941,0.00016426,2]
[390503409,1760067033104,-500.0,0.00016426,2]
[390503412,1760067033113,-561.60932286,0.00016426,2]
[390503414,1760067033123,-33820.19182298,0.00016427,2]
[390503435,1760067033236,-329.09659713,0.00016426,2]
[390503468,1760067038600,-903.1655571,0.00016345,2]
[390503469,1760067038609,-170.90340287,0.00016426,2]
[390503470,1760067038618,-693.67488611,0.00016427,2]
[390503471,1760067038629,-312.19471702,0.00016427,2]
[390503472,1760067038641,-639.87172415,0.00016427,2]
[390503473,1760067038710,-7203.61960271,0.00016427,2]
[390503474,1760067038720,-1081.89,0.00016428,3]
[390503475,1760067038730,-540.95,0.00016428,3]
[390503476,1760067038739,-270.47,0.00016428,3]
[390503477,1760067038748,-811.45,0.00016428,3]
[390503478,1760067038758,-151.30151667,0.00016428,2]
[390503479,1760067038767,-500.0,0.00016428,2]
[390503481,1760067038776,-1000.0,0.00016428,2]
[390503482,1760067038785,-500.0,0.00016428,2]
[390503484,1760067038801,-1000.0,0.00016428,2]
[390503485,1760067038811,-500.0,0.00016428,2]
[390503487,1760067038820,-162.380719,0.00016428,2]
[390503488,1760067038833,-500.0,0.00016428,2]
[390503489,1760067038852,-1000.0,0.00016428,2]
[390503490,1760067038871,-500.0,0.00016428,2]
[390503491,1760067038881,-500.0,0.00016428,2]
[390503492,1760067038891,-1000.0,0.00016428,2]
[390503493,1760067038900,-500.0,0.00016428,2]
[390503494,1760067038910,-1000.0,0.00016428,2]
[390503495,1760067038919,-500.0,0.00016428,2]
[390503496,1760067038928,-500.0,0.00016428,2]
[390503497,1760067038937,-2030.296672,0.00016428,2]
[390503498,1760067038947,-1000.0,0.00016428,2]
[390503499,1760067038956,-1000.0,0.00016428,2]
[390503500,1760067038965,-500.0,0.00016428,2]
[390503501,1760067038975,-500.0,0.00016428,2]
[390503502,1760067038983,-1000.0,0.00016428,2]
[390503503,1760067038992,-1000.0,0.00016428,2]
[390503504,1760067039001,-500.0,0.00016428,2]
[390503505,1760067039011,-1000.0,0.00016428,2]
[390503506,1760067039020,-1000.0,0.00016428,2]
[390503507,1760067039030,-500.0,0.00016428,2]
[390503508,1760067039039,-916.94506298,0.00016428,2]
[390503509,1760067039050,-500.0,0.00016428,2]
[390503510,1760067039059,-1000.0,0.00016428,2]
[390503511,1760067039068,-500.0,0.00016428,2]
[390503512,1760067039077,-1000.0,0.00016428,2]
[390503513,1760067039085,-151.0,0.00016428,2]
[390503514,1760067039094,-500.0,0.00016428,2]
[390503515,1760067039103,-1000.0,0.00016428,2]
[390503516,1760067039112,-162.380719,0.00016428,2]
[390503517,1760067039125,-500.0,0.00016428,2]
[390503518,1760067039134,-1000.0,0.00016428,2]
[390503519,1760067039143,-151.0,0.00016428,2]
[390503520,1760067039153,-500.0,0.00016428,2]
[390503521,1760067039161,-428.4707289,0.00016428,2]
[390503522,1760067039171,-151.0,0.00016428,2]
[390503523,1760067039180,-500.0,0.00016428,2]
[390503524,1760067039188,-521.20010909,0.00016428,2]
[390503525,1760067039200,-151.0,0.00016428,2]
[390503526,1760067039209,-151.0,0.00016428,2]
[390503527,1760067039218,-151.0,0.00016428,2]
[390503528,1760067039227,-251.25346138,0.00016428,2]
[390503529,1760067039236,-151.0,0.00016428,2]
[390503530,1760067039245,-151.0,0.00016428,2]
[390503531,1760067039254,-151.0,0.00016428,2]
[390503532,1760067039264,-151.0,0.00016428,2]
[390503533,1760067039273,-151.0,0.00016428,2]
[390503534,1760067039282,-151.0,0.00016428,2]
[390503535,1760067039291,-151.0,0.00016428,2]
[390503536,1760067039300,-151.0,0.00016428,2]
[390503537,1760067039310,-151.0,0.00016428,2]
[390503538,1760067039319,-151.0,0.00016428,2]
[390503539,1760067039329,-18603.8837,0.00016428,2]
[390503540,1760067039339,-151.0,0.00016428,2]
[390503541,1760067039348,-151.0,0.00016428,2]
[390503542,1760067039358,-151.0,0.00016428,2]
[390503543,1760067039367,-151.0,0.00016428,2]
[390503544,1760067039376,-151.0,0.00016428,2]
[390503545,1760067039385,-151.0,0.00016428,2]
[390503546,1760067039395,-151.0,0.00016428,2]
[390503547,1760067039404,-151.0,0.00016428,2]
[390503548,1760067039413,-250.0,0.00016428,2]
[390503549,1760067039422,-151.0,0.00016428,2]
[390503550,1760067039432,-151.0,0.00016428,2]
[390503551,1760067039441,-250.0,0.00016428,2]
[390503552,1760067039451,-151.0,0.00016428,2]
[390503553,1760067039460,-151.0,0.00016428,2]
[390503554,1760067039469,-250.0,0.00016428,2]
[390503555,1760067039479,-151.0,0.00016428,2]
[390503556,1760067039488,-151.0,0.00016428,2]
[390503557,1760067039497,-151.0,0.00016428,2]
[390503558,1760067039506,-151.0,0.00016428,2]
[390503559,1760067039515,-151.0,0.00016428,2]
[390503560,1760067039524,-250.0,0.00016428,2]
[390503561,1760067039534,-151.0,0.00016428,2]
[390503562,1760067039543,-250.0,0.00016428,2]
[390503563,1760067039554,-151.0,0.00016428,2]
[390503564,1760067039564,-178.97650996,0.00016428,2]
[390503565,1760067039573,-159.76104844,0.00016428,2]
[390503566,1760067039581,-627.50652474,0.00016437,2]
[390503567,1760067039591,-364.97920423,0.00016437,2]
[390503568,1760067039600,-500.0,0.00016438,2]
[390503569,1760067039609,-358.1776129,0.00016438,2]
[390503570,1760067039618,-500.0,0.00016438,2]
[390503571,1760067039627,-500.0,0.00016438,2]
[390503572,1760067039636,-500.0,0.00016438,2]
[390503573,1760067039645,-501.57227465,0.00016438,2]
[390503574,1760067039654,-500.0,0.00016438,2]
[390503575,1760067039663,-500.0,0.00016438,2]
[390503576,1760067039671,-500.0,0.00016438,2]
[390503577,1760067039680,-175.91563129,0.00016438,2]
[390503578,1760067039688,-500.0,0.00016438,2]
[390503579,1760067039697,-500.0,0.00016438,2]
[390503580,1760067039706,-500.0,0.00016438,2]
[390503581,1760067039715,-500.0,0.00016438,2]
[390503582,1760067039723,-500.0,0.00016438,2]
[390503583,1760067039732,-585.13614732,0.00016438,2]
[390503584,1760067039741,-502.87965002,0.00016438,2]
[390503585,1760067039750,-189.29873602,0.00016438,2]
[390503586,1760067039759,-500.0,0.00016438,2]
[390503587,1760067039768,-500.0,0.00016438,2]
[390503588,1760067039776,-500.0,0.00016438,2]
[390503589,1760067039785,-500.0,0.00016438,2]
[390503590,1760067039799,-500.0,0.00016438,2]
[390503591,1760067039808,-500.0,0.00016438,2]
[390503592,1760067039816,-1003.14755388,0.00016438,2]
[390503593,1760067039825,-500.0,0.00016438,2]
[390503594,1760067039834,-500.0,0.00016438,2]
[390503595,1760067039844,-500.0,0.00016438,2]
[390503596,1760067039853,-500.0,0.00016438,2]
[390503597,1760067039863,-500.0,0.00016438,2]
[390503598,1760067039873,-500.0,0.00016438,2]
[390503599,1760067039881,-500.0,0.00016438,2]
[390503600,1760067039890,-500.0,0.00016438,2]
[390503601,1760067039900,-500.0,0.00016438,2]
[390503602,1760067039909,-501.21198295,0.00016438,2]
[390503603,1760067039919,-500.0,0.00016438,2]
[390503604,1760067039928,-500.0,0.00016438,2]
[390503605,1760067039937,-500.0,0.00016438,2]
[390503606,1760067039946,-500.0,0.00016438,2]
[390503607,1760067039955,-500.0,0.00016438,2]
[390503608,1760067039964,-500.0,0.00016438,2]
[390503609,1760067039974,-500.0,0.00016438,2]
[390503610,1760067039983,-500.0,0.00016438,2]
[390503611,1760067039992,-500.0,0.00016438,2]
[390503612,1760067040002,-500.0,0.00016438,2]
[390503613,1760067040011,-500.0,0.00016438,2]
[390503614,1760067040020,-500.0,0.00016438,2]
[390503615,1760067040029,-500.0,0.00016438,2]
[390503616,1760067040038,-501.46008985,0.00016438,2]
[390503617,1760067040048,-500.0,0.00016438,2]
[390503618,1760067040057,-500.0,0.00016438,2]
[390503619,1760067040066,-500.0,0.00016438,2]
[390503620,1760067040075,-500.0,0.00016438,2]
[390503621,1760067040085,-500.0,0.00016438,2]
[390503622,1760067040093,-500.0,0.00016438,2]
[390503623,1760067040102,-500.0,0.00016438,2]
[390503624,1760067040111,-502.38561524,0.00016438,2]
[390503625,1760067040120,-500.0,0.00016438,2]
[390503626,1760067040130,-500.0,0.00016438,2]
[390503627,1760067040139,-500.0,0.00016438,2]
[390503628,1760067040148,-500.0,0.00016438,2]
[390503630,1760067040157,-500.0,0.00016438,2]
[390503631,1760067040166,-500.0,0.00016438,2]
[390503632,1760067040176,-504.06460321,0.00016438,2]
[390503633,1760067040185,-500.0,0.00016438,2]
[390503634,1760067040194,-500.0,0.00016438,2]
[390503635,1760067040203,-500.0,0.00016438,2]
[390503637,1760067040211,-500.0,0.00016438,2]
[390503638,1760067040220,-500.0,0.00016438,2]
[390503639,1760067040229,-449.55092511,0.00016438,2]
[390503640,1760067040243,-500.0,0.00016438,2]
[390503641,1760067040253,-500.0,0.00016438,2]
[390503643,1760067040261,-422.54032191,0.00016438,2]
[390503644,1760067040270,-500.0,0.00016438,2]
[390503646,1760067040279,-422.07411172,0.00016438,2]
[390503648,1760067040288,-500.0,0.00016438,2]
[390503650,1760067040297,-501.39088506,0.00016438,2]
[390503651,1760067040306,-501.42285571,0.00016438,2]
[390503652,1760067040320,-500.0,0.00016438,2]
[390503653,1760067040329,-158.7698339,0.00016438,2]
[390503654,1760067040338,-500.0,0.00016438,2]
[390503655,1760067040347,-501.83324465,0.00016438,2]
[390503656,1760067040357,-500.82531903,0.00016438,2]
[390503657,1760067040367,-500.0,0.00016438,2]
[390503659,1760067040376,-500.0,0.00016438,2]
[390503661,1760067040385,-500.0,0.00016438,2]
[390503662,1760067040394,-501.72722017,0.00016438,2]
[390503663,1760067040403,-500.37695254,0.00016438,2]
[390503664,1760067040412,-500.0,0.00016438,2]
[390503665,1760067040421,-500.0,0.00016438,2]
[390503667,1760067040429,-501.90666336,0.00016438,2]
[390503669,1760067040438,-500.0,0.00016438,2]
[390503671,1760067040447,-500.0,0.00016438,2]
[390503673,1760067040456,-500.0,0.00016438,2]
[390503675,1760067040464,-500.0,0.00016438,2]
[390503677,1760067040473,-500.0,0.00016438,2]
[390503678,1760067040494,-502.91454748,0.00016438,2]
[390503679,1760067040503,-501.59421243,0.00016438,2]
[390503680,1760067040512,-500.0,0.00016438,2]
[390503681,1760067040521,-500.0,0.00016438,2]
[390503682,1760067040530,-502.65792864,0.00016438,2]
[390503683,1760067040539,-500.0,0.00016438,2]
[390503684,1760067040549,-500.0,0.00016438,2]
[390503685,1760067040557,-500.0,0.00016438,2]
[390503686,1760067040566,-503.0999779,0.00016438,2]
[390503687,1760067040575,-504.27297388,0.00016438,2]
[390503688,1760067040584,-1090.62,0.00016438,2]
[390503689,1760067040598,-501.29005317,0.00016438,2]
[390503690,1760067040607,-500.0,0.00016438,2]
[390503691,1760067040615,-500.0,0.00016438,2]
[390503692,1760067040624,-721.87,0.00016438,2]
[390503693,1760067040633,-500.0,0.00016438,2]
[390503694,1760067040642,-500.0,0.00016438,2]
[390503695,1760067040650,-500.0,0.00016438,2]
[390503696,1760067040659,-640.63289934,0.00016438,2]
[390503697,1760067040668,-500.0,0.00016438,2]
[390503699,1760067040677,-500.0,0.00016438,2]
[390503701,1760067040686,-500.0,0.00016438,2]
[390503703,1760067040695,-1000.0,0.00016438,2]
[390503705,1760067040703,-500.0,0.00016438,2]
[390503706,1760067040713,-500.0,0.00016438,2]
[390503708,1760067040722,-1364.02,0.00016438,2]
[390503710,1760067040731,-500.0,0.00016438,2]
[390503712,1760067040739,-500.0,0.00016438,2]
[390503714,1760067040749,-500.0,0.00016438,2]
[390503717,1760067040758,-500.0,0.00016438,2]
[390503719,1760067040767,-500.0,0.00016438,2]
[390503720,1760067040776,-500.0,0.00016438,2]
[390503721,1760067040785,-500.0,0.00016438,2]
[390503722,1760067040794,-502.054766,0.00016438,2]
[390503723,1760067040805,-500.0,0.00016438,2]
[390503724,1760067040814,-500.0,0.00016438,2]
[390503725,1760067040823,-1306.93,0.00016438,2]
[390503726,1760067040833,-618.43,0.00016438,2]
[390503727,1760067040842,-500.0,0.00016438,2]
[390503729,1760067040852,-500.0,0.00016438,2]
[390503731,1760067040861,-502.86859448,0.00016438,2]
[390503733,1760067040870,-977.0,0.00016438,2]
[390503735,1760067040879,-500.87353756,0.00016438,2]
[390503737,1760067040889,-172.68877268,0.00016438,2]
[390503739,1760067040897,-7454.7453569,0.00016438,2]
[390503741,1760067040906,-500.0,0.00016438,2]
[390503743,1760067040915,-500.56623133,0.00016438,2]
[390503745,1760067040924,-500.0,0.00016438,2]
[390503747,1760067040933,-254.61685965,0.00016438,2]
[390503749,1760067040942,-500.0,0.00016438,2]
[390503751,1760067040951,-481.18839544,0.00016438,2]
[390503753,1760067040960,-502.50529081,0.00016438,2]
[390503755,1760067040968,-500.0,0.00016438,2]
[390503757,1760067040977,-527.5060411,0.00016438,2]
[390503759,1760067040987,-500.54182772,0.00016438,2]
[390503761,1760067040996,-500.0,0.00016438,2]
[390503763,1760067041006,-500.0,0.00016438,2]
[390503765,1760067041015,-500.0,0.00016438,2]
[390503767,1760067041024,-500.0,0.00016438,2]
[390503769,1760067041036,-500.0,0.00016438,2]
[390503771,1760067041045,-500.0,0.00016438,2]
[390503773,1760067041056,-500.0,0.00016438,2]
[390503775,1760067041065,-500.0,0.00016438,2]
[390503777,1760067041073,-502.36347265,0.00016438,2]
[390503779,1760067041082,-500.0,0.00016438,2]
[390503781,1760067041091,-151.418394,0.00016438,2]
[390503783,1760067041100,-151.0,0.00016438,2]
[390503785,1760067041110,-500.0,0.00016438,2]
[390503787,1760067041119,-488.93264309,0.00016438,2]
[390503789,1760067041127,-500.0,0.00016438,2]
[390503791,1760067041137,-500.0,0.00016438,2]
[390503793,1760067041146,-500.0,0.00016438,2]
[390503795,1760067041155,-500.0,0.00016438,2]
[390503797,1760067041164,-500.0,0.00016438,2]
[390503799,1760067041172,-501.90278055,0.00016438,2]
[390503801,1760067041182,-500.0,0.00016438,2]
[390503803,1760067041191,-500.0,0.00016438,2]
[390503805,1760067041200,-500.0,0.00016438,2]
[390503807,1760067041209,-500.0,0.00016438,2]
[390503809,1760067041218,-185.1934565,0.00016438,2]
[390503811,1760067041227,-500.0,0.00016438,2]
[390503813,1760067041235,-500.0,0.00016438,2]
[390503815,1760067041244,-500.0,0.00016438,2]
[390503817,1760067041253,-500.73956541,0.00016438,2]
[390503819,1760067041263,-500.47533536,0.00016438,2]
[390503837,1760067041420,-500.0,0.00016438,2]
[390503840,1760067041431,-520.51194691,0.00016438,2]
[390503842,1760067041440,-500.0,0.00016438,2]
[390503844,1760067041449,-500.0,0.00016438,2]
[390503846,1760067041458,-500.0,0.00016438,2]
[390503848,1760067041467,-501.29728258,0.00016438,2]
[390503850,1760067041476,-501.37689218,0.00016438,2]
[390503852,1760067041485,-500.0,0.00016438,2]
[390503853,1760067041494,-500.0,0.00016438,2]
[390503855,1760067041502,-1254.35,0.00016438,2]
[390503857,1760067041511,-499.57675367,0.00016438,2]
[390503859,1760067041520,-500.0,0.00016438,2]
[390503861,1760067041529,-500.0,0.00016438,2]
[390503863,1760067041538,-500.0,0.00016438,2]
[390503865,1760067041548,-501.10732289,0.00016438,2]
[390503867,1760067041557,-500.35610864,0.00016438,2]
[390503869,1760067041566,-500.0,0.00016438,2]
[390503871,1760067041574,-500.0,0.00016438,2]
[390503873,1760067041583,-500.0,0.00016438,2]
[390503875,1760067041593,-166.6810325,0.00016438,2]
[390503877,1760067041602,-152.097801,0.00016438,2]
[390503879,1760067041610,-500.0,0.00016438,2]
[390503881,1760067041619,-501.42469803,0.00016438,2]
[390503883,1760067041628,-500.0,0.00016438,2]
[390503885,1760067041638,-501.48108306,0.00016438,2]
[390503887,1760067041647,-151.0,0.00016438,2]
[390503889,1760067041656,-500.0,0.00016438,2]
[390503891,1760067041665,-151.321248,0.00016438,2]
[390503893,1760067041674,-500.0,0.00016438,2]
[390503895,1760067041682,-500.0,0.00016438,2]
[390503897,1760067041691,-500.0,0.00016438,2]
[390503899,1760067041700,-335.28662782,0.00016438,2]
[390503901,1760067041709,-151.0,0.00016438,2]
[390503903,1760067041718,-500.0,0.00016438,2]
[390503905,1760067041727,-500.0,0.00016438,2]
[390503907,1760067041735,-500.0,0.00016438,2]
[390503909,1760067041745,-500.0,0.00016438,2]
[390503911,1760067041753,-500.0,0.00016438,2]
[390503913,1760067041762,-500.0,0.00016438,2]
[390503915,1760067041771,-500.0,0.00016438,2]
[390503917,1760067041780,-1300.53,0.00016438,2]
[390503919,1760067041790,-500.0,0.00016438,2]
[390503921,1760067041802,-500.0,0.00016438,2]
[390503923,1760067041814,-500.0,0.00016438,2]
[390503925,1760067041824,-151.0,0.00016438,2]
[390503927,1760067041833,-500.0,0.00016438,2]
[390503929,1760067041843,-500.0,0.00016438,2]
[390503931,1760067041852,-151.0,0.00016438,2]
[390503933,1760067041861,-151.0,0.00016438,2]
[390503935,1760067041870,-501.83631567,0.00016438,2]
[390503937,1760067041880,-500.0,0.00016438,2]
[390503939,1760067041890,-500.0,0.00016438,2]
[390503941,1760067041901,-501.70052436,0.00016438,2]
[390503943,1760067041909,-151.0,0.00016438,2]
[390503945,1760067041918,-151.0,0.00016438,2]
[390503947,1760067041927,-983.84,0.00016438,2]
[390503949,1760067041936,-151.0,0.00016438,2]
[390503951,1760067041946,-7851.8,0.00016438,2]
[390503953,1760067041955,-500.0,0.00016438,2]
[390503955,1760067041964,-500.0,0.00016438,2]
[390503957,1760067041973,-500.0,0.00016438,2]
[390503959,1760067041982,-151.0,0.00016438,2]
[390503961,1760067041991,-500.0,0.00016438,2]
[390503963,1760067042003,-502.04813381,0.00016438,2]
[390503965,1760067042012,-151.0,0.00016438,2]
[390503967,1760067042022,-500.0,0.00016438,2]
[390503969,1760067042030,-151.0,0.00016438,2]
[390503971,1760067042040,-1034.78,0.00016438,2]
[390503973,1760067042051,-500.0,0.00016438,2]
[390503975,1760067042060,-500.88106567,0.00016438,2]
[390503977,1760067042069,-500.0,0.00016438,2]
[390503979,1760067042078,-151.0,0.00016438,2]
[390503981,1760067042087,-151.0,0.00016438,2]
[390503983,1760067042095,-151.0,0.00016438,2]
[390503985,1760067042104,-500.0,0.00016438,2]
[390503987,1760067042115,-500.0,0.00016438,2]
[390503989,1760067042124,-500.0,0.00016438,2]
[390503991,1760067042133,-500.0,0.00016438,2]
[390503993,1760067042142,-500.0,0.00016438,2]
[390503995,1760067042150,-500.0,0.00016438,2]
[390503997,1760067042161,-500.0,0.00016438,2]
[390503999,1760067042170,-500.0,0.00016438,2]
[390504001,1760067042179,-500.0,0.00016438,2]
[390504003,1760067042187,-896.78,0.00016438,2]
[390504005,1760067042196,-500.0,0.00016438,2]
[390504007,1760067042207,-243.81529387,0.00016438,2]
[390504009,1760067042215,-500.0,0.00016438,2]
[390504011,1760067042224,-500.0,0.00016438,2]
[390504013,1760067042233,-500.0,0.00016438,2]
[390504015,1760067042242,-500.0,0.00016438,2]
[390504017,1760067042251,-500.0,0.00016438,2]
[390504019,1760067042260,-500.89667396,0.00016438,2]
[390504021,1760067042269,-500.70192007,0.00016438,2]
[390504023,1760067042278,-214.71148,0.00016438,2]
[390504025,1760067042288,-558.04567782,0.00016438,2]
[390504027,1760067042298,-1025.52,0.00016438,2]
[390504029,1760067042308,-500.86748288,0.00016438,2]
[390504031,1760067042317,-151.506493,0.00016438,2]
[390504033,1760067042327,-500.0,0.00016438,2]
[390504035,1760067042336,-488.61603708,0.00016438,2]
[390504037,1760067042345,-500.0,0.00016438,2]
[390504039,1760067042354,-500.0,0.00016438,2]
[390504041,1760067042363,-529.63,0.00016438,2]
[390504043,1760067042372,-500.0,0.00016438,2]
[390504045,1760067042381,-501.67387717,0.00016438,2]
[390504047,1760067042390,-500.0,0.00016438,2]
[390504049,1760067042399,-500.0,0.00016438,2]
[390504051,1760067042409,-500.33800412,0.00016438,2]
[390504053,1760067042418,-500.0,0.00016438,2]
[390504055,1760067042427,-500.0,0.00016438,2]
[390504057,1760067042438,-500.0,0.00016438,2]
[390504059,1760067042447,-500.0,0.00016438,2]
[390504061,1760067042457,-500.0,0.00016438,2]
[390504063,1760067042466,-500.0,0.00016438,2]
[390504065,1760067042475,-500.0,0.00016438,2]
[390504067,1760067042485,-500.0,0.00016438,2]
[390504069,1760067042494,-500.0,0.00016438,2]
[390504071,1760067042503,-500.0,0.00016438,2]
[390504073,1760067042512,-500.0,0.00016438,2]
[390504075,1760067042522,-500.0,0.00016438,2]
[390504077,1760067042534,-500.0,0.00016438,2]
[390504079,1760067042543,-500.0,0.00016438,2]
[390504081,1760067042555,-500.0,0.00016438,2]
[390504083,1760067042564,-500.0,0.00016438,2]
[390504085,1760067042573,-567.68992436,0.00016438,2]
[390504087,1760067042582,-500.0,0.00016438,2]
[390504089,1760067042592,-500.0,0.00016438,2]
[390504091,1760067042601,-500.0,0.00016438,2]
[390504093,1760067042610,-500.0,0.00016438,2]
[390504095,1760067042619,-791.06,0.00016438,2]
[390504097,1760067042629,-500.0,0.00016438,2]
[390504099,1760067042638,-500.0,0.00016438,2]